fUST/lending_fUST_20240728
["ID","MTS","AMOUNT","RATE_DAILY","PERIOD"]
[333465262,1722160161708,-837.14,0.00010959,2]
[333465263,1722160161731,-201.850519,0.00010962,2]
[333465264,1722160161752,-201.850519,0.00010991,2]
[333465265,1722160161774,-420.0,0.00010999,2]
[333465266,1722160161795,-201.850519,0.0001102,2]
[333465267,1722160161818,-201.850519,0.00011049,2]
[333465268,1722160161840,-201.850519,0.00011078,2]
[333465269,1722160161862,-201.850519,0.00011107,2]
[333465270,1722160161884,-201.850519,0.00011136,2]
[333465271,1722160161907,-201.850519,0.00011165,2]
[333465272,1722160161928,-166.666666,0.00011386,2]
[333465273,1722160161951,-166.666666,0.00011814,2]
[333465274,1722160161973,-313.0,0.00012099,2]
[333465275,1722160172107,-166.666666,0.00012241,2]
[333465315,1722160238510,-663.82537958,0.000129,2]
[333465316,1722160238540,-429.78308658,0.000129,2]
[333465317,1722160238550,-153.0,0.00012959,2]
[333465318,1722160238561,-15006.57336151,0.00013,2]
[333465319,1722160238571,-1093.60846613,0.00013347,2]
[333465320,1722160238582,-186.235473,0.00013425,2]
[333465321,1722160238591,-5308.80312147,0.00013494,2]
[333465322,1722160238601,-8221.64768939,0.00013588,2]
[333465323,1722160238611,-3254.4566346,0.00013588,2]
[333465324,1722160238622,-5357.46316732,0.00013591,2]
[333465343,1722160240712,-2864.18452206,0.00013591,2]
[333465345,1722160240722,-8221.64768938,0.00013593,2]
[333465347,1722160240731,-8221.64768938,0.00013596,2]
[333465349,1722160240741,-367.60913684,0.00013597,2]
[333465351,1722160240750,-8221.64768938,0.00013598,2]
[333465353,1722160240760,-2007.36234583,0.00013598,2]
[333465355,1722160240771,-2000.0,0.00013598,2]
[333465357,1722160240782,-88888.0,0.00013598,2]
[333465359,1722160240793,-150.112233,0.000136,2]
[333465361,1722160240803,-1627.2283173,0.0001365,2]
[333465363,1722160240812,-15596.18561146,0.0001366,2]
[333465365,1722160240823,-1627.2283173,0.00013677,2]
[333465367,1722160240834,-8136.1415865,0.00013678,2]
[333465369,1722160240845,-1627.2283173,0.00013688,2]
[333465371,1722160240855,-11390.5982211,0.00013688,2]
[333465373,1722160240865,-27575.20478632,0.00013698,5]
[333465375,1722160240874,-10567.21293444,0.00013698,5]
[333465377,1722160240884,-500.0,0.00013698,2]
[333465379,1722160240894,-500.0,0.00013698,2]
[333465381,1722160240905,-500.0,0.00013698,2]
[333465383,1722160240916,-500.0,0.00013698,2]
[333465386,1722160240928,-500.0,0.00013698,2]
[333465388,1722160240940,-266.095325,0.00013698,2]
[333465390,1722160240951,-500.0,0.00013698,2]
[333465392,1722160240960,-500.0,0.00013698,2]
[333465394,1722160240972,-500.0,0.00013698,2]
[333465396,1722160240984,-1312.42,0.00013698,2]
[333465399,1722160240994,-1312.42,0.00013698,2]
[333465401,1722160241004,-1312.42,0.00013698,2]
[333465403,1722160241014,-1312.42,0.00013698,2]
[333465405,1722160241025,-1312.42,0.00013698,2]
[333465407,1722160241035,-1312.42,0.00013698,2]
[333465409,1722160241045,-1312.42,0.00013698,2]
[333465411,1722160241057,-1312.42,0.00013698,2]
[333465413,1722160241066,-1312.42,0.00013698,2]
[333465415,1722160241075,-1312.42,0.00013698,2]
[333465417,1722160241085,-1312.42,0.00013698,2]
[333465431,1722160241207,-1312.42,0.00013698,2]
[333465433,1722160241218,-1312.42,0.00013698,2]
[333465435,1722160241228,-1312.42,0.00013698,2]
[333465437,1722160241237,-1312.42,0.00013698,2]
[333465439,1722160241247,-1080.17456637,0.00013698,2]
[333465482,1722160244690,-232.24543363,0.00013698,2]
[333465484,1722160244700,-1312.42,0.00013698,2]
[333465486,1722160244710,-120.70956637,0.00013698,2]
[333465660,1722160336592,170.13126204,9.9e-05,2]
[333465663,1722161234126,-182.53208596,9.801e-05,2]
[333465664,1722161238094,-1649.10264435,9.801e-05,2]
[333465665,1722161238117,-300.0,9.899e-05,2]
[333465666,1722161238139,-300.0,9.899e-05,2]
[333465667,1722161238160,-5130.54898841,9.9e-05,2]
[333465668,1722161238181,-1075.51767524,9.9e-05,2]
[333465669,1722161246102,-257.16409311,9.9e-05,2]
[333465670,1722161246123,-508.2998709,9.9e-05,2]
[333465671,1722161250097,-1793.01915132,9.9e-05,2]
[333465672,1722161250120,-2639.93460121,0.00010194,2]
[333465673,1722161345133,-273.37336231,9.9e-05,2]
[333465674,1722161345155,-300.0,0.00010193,2]
[333465675,1722161345176,-22260.06539879,0.00010194,2]
[333465676,1722161345196,-5691.3432288,0.00010229,2]
[333465677,1722161345218,-166.951307,0.00010792,2]
[333465678,1722161345240,-166.951307,0.00010839,2]
[333465679,1722161345260,-409.8595519,0.00010848,2]
[333465680,1722161345282,-166.951307,0.00010886,2]
[333465681,1722161345304,-166.951307,0.00010933,2]
[333465682,1722161345324,-166.666666,0.00010959,2]
[333465683,1722161345345,-166.951307,0.0001098,2]
[333465684,1722161345366,-166.951307,0.00011027,2]
[333465685,1722161345387,-250.0,0.00011032,2]
[333465686,1722161345407,-166.951307,0.00011073,2]
[333465687,1722161345429,-1873.4837643,0.00011113,2]
[333465688,1722161345454,-166.951307,0.0001112,2]
[333465689,1722161345476,-166.951307,0.00011167,2]
[333465690,1722161345497,-420.0,0.00011212,2]
[333465691,1722161345518,-166.951307,0.00011214,2]
[333465692,1722161345541,-166.666666,0.00011215,2]
[333465693,1722161345564,-166.951307,0.00011261,2]
[333465694,1722161345585,-166.951307,0.00011308,2]
[333465695,1722161345606,-166.951307,0.00011355,2]
[333465696,1722161345626,-166.666666,0.00011472,2]
[333465697,1722161345647,-166.666666,0.00011728,2]
[333465698,1722161345668,-166.666666,0.00011985,2]
[333465699,1722161345698,-166.666666,0.00012241,2]
[333465700,1722161345720,-215.62910757,0.00012333,2]
[333465701,1722161347193,-208.58162396,0.00012333,2]
[333465702,1722161353375,273.37336231,9.9e-05,2]
[333465703,1722161388730,164.24967346,0.00010194,2]
[333465728,1722161433386,154.88296144,0.00012,2]
[333465752,1722161435149,-1243.93533098,0.000129,2]
[333465754,1722161435160,-1243.93533098,0.00013008,2]
[333465756,1722161435169,-650.51980308,0.00013027,2]
[333465758,1722161435178,-190.823648,0.00013425,2]
[333465760,1722161435187,-191.4436215,0.00013561,2]
[333465762,1722161435197,-24057.07418471,0.00013588,2]
[333465770,1722161435259,-76.28320566,0.00013588,2]
[333466048,1722161439477,-279.56323879,0.00013588,2]
[333466061,1722161440923,-16555.73730797,0.00013588,2]
[333466062,1722161440952,-67214.13110087,0.00013588,2]
[333466063,1722161440963,-2000.0,0.00013588,2]
[333466064,1722161440974,-2106.38251672,0.00013598,2]
[333466065,1722161440983,-200.0,0.00013598,2]
[333466066,1722161440993,-88888.0,0.00013598,2]
[333466067,1722161441004,-150.112233,0.000136,2]
[333466068,1722161441014,-150.112233,0.000136,2]
[333466069,1722161441023,-150.112233,0.000136,2]
[333466070,1722161441033,-150.112233,0.000136,2]
[333466071,1722161441046,-150.112233,0.000136,2]
[333466072,1722161441058,-150.112233,0.000136,2]
[333466073,1722161441068,-150.112233,0.000136,2]
[333466074,1722161441079,-321.75470181,0.00013626,2]
[333466075,1722161441090,-5308.80312147,0.00013642,2]
[333466076,1722161441100,-54091.3945191,0.00013678,2]
[333466077,1722161441112,-76.37317593,0.00013678,2]
[333466156,1722161446845,-74.62682407,0.00013678,2]
[333466158,1722161446855,-151.710568,0.00013678,2]
[333466159,1722161446866,-151.0,0.00013678,2]
[333466160,1722161446876,-151.0,0.00013678,2]
[333466161,1722161446887,-151.0,0.00013678,2]
[333466162,1722161446899,-305.065166,0.00013678,2]
[333466163,1722161446909,-305.065166,0.00013678,2]
[333466164,1722161446918,-151.0,0.00013678,2]
[333466165,1722161446928,-621.52599015,0.00013679,2]
[333466166,1722161446941,-10567.21293444,0.00013688,5]
[333466167,1722161446950,-151.0,0.00013688,2]
[333466168,1722161446959,-151.0,0.00013688,2]
[333466169,1722161446968,-171.762607,0.00013688,2]
[333466170,1722161446978,-269.422458,0.00013688,2]
[333466171,1722161446987,-269.422458,0.00013688,2]
[333466172,1722161446996,-269.422458,0.00013688,2]
[333466173,1722161447007,-269.422458,0.00013688,2]
[333466174,1722161447017,-152.408321,0.00013688,2]
[333466175,1722161447026,-151.0,0.00013688,2]
[333466176,1722161447036,-151.0,0.00013688,2]
[333466177,1722161447045,-151.0,0.00013688,2]
[333466178,1722161447054,-151.26329,0.00013688,2]
[333466179,1722161447064,-151.0,0.00013688,2]
[333466180,1722161447073,-153.208445,0.00013688,2]
[333466181,1722161447082,-151.0,0.00013688,2]
[333466182,1722161447091,-151.0,0.00013688,2]
[333466183,1722161447101,-258.502402,0.00013688,2]
[333466184,1722161447110,-550.349379,0.00013688,2]
[333466185,1722161447119,-550.349379,0.00013688,2]
[333466186,1722161447129,-302.484213,0.00013688,2]
[333466187,1722161447138,-302.484213,0.00013688,2]
[333466188,1722161447147,-302.484213,0.00013688,2]
[333466189,1722161447156,-302.484213,0.00013688,2]
[333466190,1722161447166,-151.0,0.00013688,2]
[333466191,1722161447175,-151.0,0.00013688,2]
[333466192,1722161447184,-151.0,0.00013688,2]
[333466193,1722161447194,-151.0,0.00013688,2]
[333466194,1722161447203,-151.0,0.00013688,2]
[333466195,1722161447213,-182.850076,0.00013688,2]
[333466196,1722161447222,-182.850076,0.00013688,2]
[333466197,1722161447231,-182.850076,0.00013688,2]
[333466198,1722161447241,-182.850076,0.00013688,2]
[333466199,1722161447250,-151.0,0.00013688,2]
[333466200,1722161447260,-151.0,0.00013688,2]
[333466201,1722161447269,-151.0,0.00013688,2]
[333466207,1722161447395,-288.39983,0.00013688,2]
[333466208,1722161447405,-194.062658,0.00013688,2]
[333466209,1722161447415,-194.062658,0.00013688,2]
[333466210,1722161447425,-194.062658,0.00013688,2]
[333466211,1722161447434,-194.062658,0.00013688,2]
[333466212,1722161447443,-418.825301,0.00013688,2]
[333466213,1722161447453,-418.825301,0.00013688,2]
[333466214,1722161447462,-418.825301,0.00013688,2]
[333466215,1722161447471,-418.825301,0.00013688,2]
[333466216,1722161447481,-252.423495,0.00013688,2]
[333466217,1722161447490,-252.423495,0.00013688,2]
[333466218,1722161447499,-252.423495,0.00013688,2]
[333466219,1722161447508,-252.423495,0.00013688,2]
[333466220,1722161447519,-151.0,0.00013688,2]
[333466221,1722161447529,-151.0,0.00013688,2]
[333466222,1722161447540,-232.898568,0.00013688,2]
[333466223,1722161447552,-232.898568,0.00013688,2]
[333466224,1722161447564,-232.898568,0.00013688,2]
[333466225,1722161447575,-232.898568,0.00013688,2]
[333466226,1722161447586,-237.033927,0.00013688,2]
[333466227,1722161447597,-151.0,0.00013688,2]
[333466228,1722161447607,-151.0,0.00013688,2]
[333466229,1722161447618,-160.038945,0.00013688,2]
[333466230,1722161447630,-305.065166,0.00013688,2]
[333466231,1722161447641,-160.038945,0.00013688,2]
[333466232,1722161447652,-305.065166,0.00013688,2]
[333466233,1722161447663,-151.0,0.00013688,2]
[333466234,1722161447672,-162274.183557,0.00013688,2]
[333466235,1722161447682,-27575.20478632,0.00013698,5]
[333466236,1722161447691,-1191.71043363,0.00013698,2]
[333466237,1722161447701,-1312.42,0.00013698,2]
[333466238,1722161447711,-1312.42,0.00013698,2]
[333466239,1722161447722,-1312.42,0.00013698,2]
[333466240,1722161447733,-1312.42,0.00013698,2]
[333466241,1722161447744,-1312.42,0.00013698,2]
[333466242,1722161447757,-1312.59501281,0.00013698,2]
[333466243,1722161447768,-500.0,0.00013698,2]
[333466244,1722161447778,-500.0,0.00013698,2]
[333466245,1722161447789,-1043.02,0.00013698,2]
[333466246,1722161447801,-1043.02,0.00013698,2]
[333466247,1722161447812,-1043.02,0.00013698,2]
[333466248,1722161447823,-1043.02,0.00013698,2]
[333466249,1722161447833,-1043.02,0.00013698,2]
[333466250,1722161447844,-1043.02,0.00013698,2]
[333466251,1722161447855,-1043.02,0.00013698,2]
[333466252,1722161447865,-1043.02,0.00013698,2]
[333466253,1722161447876,-1043.02,0.00013698,2]
[333466254,1722161447888,-1043.02,0.00013698,2]
[333466255,1722161447900,-1043.02,0.00013698,2]
[333466256,1722161447910,-1043.02,0.00013698,2]
[333466257,1722161447920,-1043.02,0.00013698,2]
[333466258,1722161447934,-1043.02,0.00013698,2]
[333466259,1722161447946,-1043.02,0.00013698,2]
[333466260,1722161447956,-1043.02,0.00013698,2]
[333466261,1722161447968,-1043.02,0.00013698,2]
[333466262,1722161447979,-1043.02,0.00013698,2]
[333466263,1722161447989,-1043.02,0.00013698,2]
[333466264,1722161447998,-1043.02,0.00013698,2]
[333466265,1722161448008,-1043.02,0.00013698,2]
[333466266,1722161448018,-1043.02,0.00013698,2]
[333466267,1722161448028,-1043.02,0.00013698,2]
[333466268,1722161448037,-1043.10989137,0.00013698,2]
[333466269,1722161448047,-505.94128905,0.00013698,2]
[333466270,1722161448056,-303.47362636,0.00013698,2]
[333466271,1722161448065,-154505.47188313,0.00013698,2]
[333466272,1722161448075,-502.53402943,0.00013698,2]
[333466273,1722161448084,-7523.67009285,0.00013698,2]
[333466274,1722161448096,-500.0,0.00013698,2]
[333466275,1722161448106,-444.77598754,0.00013698,2]
[333466276,1722161448116,-500.0,0.00013698,2]
[333466277,1722161448126,-500.0,0.00013698,2]
[333466278,1722161448137,-500.0,0.00013698,2]
[333466279,1722161448147,-500.0,0.00013698,2]
[333466280,1722161448157,-500.0,0.00013698,2]
[333466281,1722161448167,-500.0,0.00013698,2]
[333466282,1722161448178,-500.0,0.00013698,2]
[333466283,1722161448187,-500.0,0.00013698,2]
[333466284,1722161448198,-500.0,0.00013698,2]
[333466285,1722161448208,-500.0,0.00013698,2]
[333466286,1722161448219,-500.0,0.00013698,2]
[333466287,1722161448230,-500.0,0.00013698,2]
[333466288,1722161448241,-500.0,0.00013698,2]
[333466289,1722161448252,-500.0,0.00013698,2]
[333466290,1722161448263,-500.0,0.00013698,2]
[333466291,1722161448273,-500.0,0.00013698,2]
[333466292,1722161448282,-500.0,0.00013698,2]
[333466293,1722161448292,-500.0,0.00013698,2]
[333466294,1722161448302,-500.0,0.00013698,2]
[333466295,1722161448311,-500.0,0.00013698,2]
[333466296,1722161448320,-500.0,0.00013698,2]
[333466297,1722161448329,-403.82443557,0.00013698,2]
[333466298,1722161448339,-185.10903634,0.00013698,2]
[333466299,1722161448349,-500.0,0.00013698,2]
[333466300,1722161448359,-500.0,0.00013698,2]
[333466301,1722161448370,-505.97170029,0.00013698,2]
[333466302,1722161448380,-523.78158009,0.00013698,2]
[333466303,1722161448390,-500.40234949,0.00013698,2]
[333466304,1722161448399,-502.46805735,0.00013698,2]
[333466305,1722161448410,-645.55270096,0.00013698,2]
[333466306,1722161448419,-500.0,0.00013698,2]
[333466307,1722161448429,-500.0,0.00013698,2]
[333466308,1722161448439,-507.27027371,0.00013698,2]
[333466309,1722161448450,-500.0,0.00013698,2]
[333466310,1722161448462,-500.0,0.00013698,2]
[333466311,1722161448473,-500.0,0.00013698,2]
[333466312,1722161448482,-500.0,0.00013698,2]
[333466313,1722161448492,-500.0,0.00013698,2]
[333466314,1722161448501,-502.22379633,0.00013698,2]
[333466315,1722161448511,-500.0,0.00013698,2]
[333466316,1722161448520,-161.426893,0.00013698,2]
[333466317,1722161448530,-502.26711902,0.00013698,2]
[333466318,1722161448541,-500.0,0.00013698,2]
[333466319,1722161448551,-500.0,0.00013698,2]
[333466320,1722161448562,-504.79220923,0.00013698,2]
[333466321,1722161448571,-502.03835307,0.00013698,2]
[333466322,1722161448581,-500.0,0.00013698,2]
[333466323,1722161448591,-500.0,0.00013698,2]
[333466324,1722161448601,-500.0,0.00013698,2]
[333466325,1722161448611,-500.0,0.00013698,2]
[333466326,1722161448621,-500.0,0.00013698,2]
[333466327,1722161448631,-500.0,0.00013698,2]
[333466328,1722161448641,-151.07741243,0.00013698,2]
[333466329,1722161448651,-254.03992776,0.00013698,2]
[333466330,1722161448664,-500.0,0.00013698,2]
[333466331,1722161448674,-576.76107088,0.00013698,2]
[333466332,1722161448683,-500.0,0.00013698,2]
[333466333,1722161448693,-500.0,0.00013698,2]
[333466334,1722161448702,-500.0,0.00013698,2]
[333466335,1722161448712,-211.490601,0.00013698,2]
[333466336,1722161448722,-500.0,0.00013698,2]
[333466337,1722161448731,-500.0,0.00013698,2]
[333466338,1722161448741,-500.0,0.00013698,2]
[333466339,1722161448750,-500.0,0.00013698,2]
[333466340,1722161448760,-201.68059436,0.00013698,2]
[333466341,1722161448771,-151.0,0.00013698,2]
[333466342,1722161448780,-151.0,0.00013698,2]
[333466343,1722161448790,-151.0,0.00013698,2]
[333466344,1722161448799,-151.0,0.00013698,2]
[333466345,1722161448809,-151.0,0.00013698,2]
[333466346,1722161448819,-151.0,0.00013698,2]
[333466347,1722161448829,-194.302186,0.00013698,2]
[333466348,1722161448838,-507.13807192,0.00013698,2]
[333466349,1722161448848,-500.0,0.00013698,2]
[333466350,1722161448858,-500.0,0.00013698,2]
[333466351,1722161448869,-500.86539632,0.00013698,2]
[333466352,1722161448879,-500.0,0.00013698,2]
[333466353,1722161448888,-500.0,0.00013698,2]
[333466354,1722161448898,-500.0,0.00013698,2]
[333466355,1722161448908,-500.0,0.00013698,2]
[333466356,1722161448918,-500.0,0.00013698,2]
[333466357,1722161448929,-500.0,0.00013698,2]
[333466358,1722161448945,-500.0,0.00013698,2]
[333466359,1722161448955,-500.0,0.00013698,2]
[333466360,1722161448965,-500.0,0.00013698,2]
[333466361,1722161448976,-500.0,0.00013698,2]
[333466362,1722161448987,-151.0,0.00013698,2]
[333466363,1722161448997,-500.0,0.00013698,2]
[333466364,1722161449006,-151.0,0.00013698,2]
[333466365,1722161449020,-151.0,0.00013698,2]
[333466366,1722161449031,-151.0,0.00013698,2]
[333466367,1722161449041,-151.0,0.00013698,2]
[333466368,1722161449050,-151.0,0.00013698,2]
[333466369,1722161449061,-151.0,0.00013698,2]
[333466370,1722161449070,-296.370473,0.00013698,2]
[333466371,1722161449080,-501.49327513,0.00013698,2]
[333466372,1722161449090,-177.69039988,0.00013698,2]
[333466373,1722161449101,-539.27714873,0.00013698,2]
[333466374,1722161449111,-462.55442239,0.00013698,2]
[333466375,1722161449121,-500.0,0.00013698,2]
[333466376,1722161449131,-506.63022792,0.00013698,2]
[333466377,1722161449143,-500.0,0.00013698,2]
[333466378,1722161449153,-500.0,0.00013698,2]
[333466379,1722161449164,-500.0,0.00013698,2]
[333466380,1722161449174,-500.0,0.00013698,2]
[333466381,1722161449185,-500.0,0.00013698,2]
[333466382,1722161449195,-500.0,0.00013698,2]
[333466383,1722161449204,-500.0,0.00013698,2]
[333466384,1722161449214,-500.0,0.00013698,2]
[333466385,1722161449224,-500.0,0.00013698,2]
[333466386,1722161449235,-500.0,0.00013698,2]
[333466387,1722161449245,-500.0,0.00013698,2]
[333466388,1722161449256,-500.0,0.00013698,2]
[333466389,1722161449265,-500.0,0.00013698,2]
[333466390,1722161449275,-630.97,0.00013698,2]
[333466391,1722161449284,-500.0,0.00013698,2]
[333466392,1722161449294,-500.0,0.00013698,2]
[333466393,1722161449304,-500.0,0.00013698,2]
[333466394,1722161449314,-500.0,0.00013698,2]
[333466395,1722161449324,-501.35550259,0.00013698,2]
[333466396,1722161449334,-500.34535648,0.00013698,2]
[333466397,1722161449344,-500.0,0.00013698,2]
[333466398,1722161449355,-500.0,0.00013698,2]
[333466399,1722161449364,-501.25724494,0.00013698,2]
[333466400,1722161449374,-500.7472132,0.00013698,2]
[333466401,1722161449384,-500.0,0.00013698,2]
[333466402,1722161449394,-305.06749527,0.00013698,2]
[333466403,1722161449407,-500.0,0.00013698,2]
[333466404,1722161449417,-500.0,0.00013698,2]
[333466405,1722161449427,-500.0,0.00013698,2]
[333466406,1722161449438,-500.0,0.00013698,2]
[333466407,1722161449448,-500.0,0.00013698,2]
[333466408,1722161449459,-500.0,0.00013698,2]
[333466409,1722161449470,-500.0,0.00013698,2]
[333466410,1722161449480,-503.33917486,0.00013698,2]
[333466411,1722161449493,-500.0,0.00013698,2]
[333466412,1722161449503,-500.0,0.00013698,2]
[333466413,1722161449513,-500.0,0.00013698,2]
[333466414,1722161449523,-500.0,0.00013698,2]
[333466415,1722161449533,-502.11209902,0.00013698,2]
[333466416,1722161449546,-151.0,0.00013698,2]
[333466417,1722161449557,-151.0,0.00013698,2]
[333466418,1722161449567,-506.29332002,0.00013698,2]
[333466419,1722161449577,-151.0,0.00013698,2]
[333466420,1722161449588,-500.0,0.00013698,2]
[333466421,1722161449598,-500.0,0.00013698,2]
[333466422,1722161449608,-500.0,0.00013698,2]
[333466423,1722161449619,-151.0,0.00013698,2]
[333466424,1722161449629,-500.0,0.00013698,2]
[333466425,1722161449639,-151.0,0.00013698,2]
[333466426,1722161449650,-500.0,0.00013698,2]
[333466427,1722161449660,-151.0,0.00013698,2]
[333466428,1722161449671,-500.0,0.00013698,2]
[333466429,1722161449681,-500.0,0.00013698,2]
[333466430,1722161449691,-151.0,0.00013698,2]
[333466431,1722161449702,-500.0,0.00013698,2]
[333466432,1722161449712,-500.0,0.00013698,2]
[333466433,1722161449722,-151.0,0.00013698,2]
[333466434,1722161449733,-500.0,0.00013698,2]
[333466435,1722161449743,-516.97210084,0.00013698,2]
[333466436,1722161449753,-151.0,0.00013698,2]
[333466437,1722161449764,-151.0,0.00013698,2]
[333466438,1722161449774,-151.0,0.00013698,2]
[333466439,1722161449787,-151.0,0.00013698,2]
[333466440,1722161449798,-500.0,0.00013698,2]
[333466441,1722161449810,-242.564843,0.00013698,2]
[333466442,1722161449820,-500.0,0.00013698,2]
[333466443,1722161449832,-505.45716088,0.00013698,2]
[333466444,1722161449842,-500.0,0.00013698,2]
[333466445,1722161449855,-500.0,0.00013698,2]
[333466446,1722161449865,-500.0,0.00013698,2]
[333466447,1722161449875,-500.0,0.00013698,2]
[333466448,1722161449885,-500.0,0.00013698,2]
[333466449,1722161449894,-500.0,0.00013698,2]
[333466450,1722161449903,-500.0,0.00013698,2]
[333466451,1722161449912,-500.0,0.00013698,2]
[333466452,1722161449921,-503.02095139,0.00013698,2]
[333466453,1722161449932,-500.0,0.00013698,2]
[333466454,1722161449946,-500.0,0.00013698,2]
[333466455,1722161449958,-500.0,0.00013698,2]
[333466456,1722161450067,-151.0,0.00013698,2]
[333466457,1722161450077,-151.0,0.00013698,2]
[333466458,1722161450088,-151.0,0.00013698,2]
[333466459,1722161450097,-151.0,0.00013698,2]
[333466460,1722161450107,-151.0,0.00013698,2]
[333466461,1722161450117,-151.0,0.00013698,2]
[333466462,1722161450127,-151.0,0.00013698,2]
[333466463,1722161450137,-151.0,0.00013698,2]
[333466464,1722161450147,-500.0,0.00013698,2]
[333466465,1722161450158,-243.268524,0.00013698,2]
[333466466,1722161450169,-500.0,0.00013698,2]
[333466467,1722161450178,-502.78184778,0.00013698,2]
[333466468,1722161450188,-443.41683122,0.00013698,2]
[333466469,1722161450198,-151.389932,0.00013698,2]
[333466470,1722161450209,-500.0,0.00013698,2]
[333466471,1722161450220,-628.72928174,0.00013698,2]
[333466472,1722161450230,-500.0,0.00013698,2]
[333466473,1722161450241,-191.361717,0.00013698,2]
[333466474,1722161450250,-500.0,0.00013698,2]
[333466475,1722161450260,-500.0,0.00013698,2]
[333466476,1722161450270,-151.0,0.00013698,2]
[333466477,1722161450280,-151.0,0.00013698,2]
[333466478,1722161450290,-151.0,0.00013698,2]
[333466479,1722161450300,-151.0,0.00013698,2]
[333466480,1722161450310,-500.0,0.00013698,2]
[333466481,1722161450321,-500.0,0.00013698,2]
[333466482,1722161450332,-151.0,0.00013698,2]
[333466483,1722161450342,-500.0,0.00013698,2]
[333466484,1722161450354,-333.77361333,0.00013698,2]
[333466485,1722161450364,-415.896844,0.00013698,2]
[333466486,1722161450374,-415.896844,0.00013698,2]
[333466487,1722161450384,-415.896844,0.00013698,2]
[333466488,1722161450395,-415.896844,0.00013698,2]
[333466489,1722161450406,-500.0,0.00013698,2]
[333466490,1722161450415,-500.0,0.00013698,2]
[333466491,1722161450426,-415.896844,0.00013698,2]
[333466492,1722161450437,-415.896844,0.00013698,2]
[333466493,1722161450447,-500.0,0.00013698,2]
[333466494,1722161450456,-415.896844,0.00013698,2]
[333466495,1722161450466,-415.896844,0.00013698,2]
[333466496,1722161450476,-415.896844,0.00013698,2]
[333466497,1722161450486,-415.896844,0.00013698,2]
[333466498,1722161450496,-415.896844,0.00013698,2]
[333466499,1722161450505,-415.896844,0.00013698,2]
[333466500,1722161450514,-415.896844,0.00013698,2]
[333466501,1722161450523,-415.896844,0.00013698,2]
[333466502,1722161450533,-415.896844,0.00013698,2]
[333466503,1722161450543,-415.896844,0.00013698,2]
[333466504,1722161450552,-415.896844,0.00013698,2]
[333466505,1722161450563,-572.33971183,0.00013698,2]
[333466506,1722161450572,-415.896844,0.00013698,2]
[333466507,1722161450582,-415.896844,0.00013698,2]
[333466508,1722161450591,-415.896838,0.00013698,2]
[333466509,1722161450601,-500.0,0.00013698,2]
[333466510,1722161450610,-500.0,0.00013698,2]
[333466511,1722161450619,-500.0,0.00013698,2]
[333466512,1722161450630,-500.0,0.00013698,2]
[333466513,1722161450639,-500.0,0.00013698,2]
[333466514,1722161450648,-500.0,0.00013698,2]
[333466515,1722161450658,-500.0,0.00013698,2]
[333466516,1722161450667,-151.0,0.00013698,2]
[333466517,1722161450677,-500.0,0.00013698,2]
[333466518,1722161450686,-151.0,0.00013698,2]
[333466519,1722161450696,-151.0,0.00013698,2]
[333466520,1722161450707,-419.18799702,0.00013698,2]
[333466521,1722161450717,-151.0,0.00013698,2]
[333466522,1722161450727,-151.371341,0.00013698,2]
[333466523,1722161450738,-500.0,0.00013698,2]
[333466524,1722161450747,-500.0,0.00013698,2]